Cogmind - Beta 16 @@@ ROGUE MODE // 2025.11.03 @ 18:11:54 Player: AnotherZach Result: Destroyed by G-73 Enforcer with Phase Gun Performance ------------- Evolutions (8) 4000 Regions Visited (16) 3200 Robots Destroyed (344) 1720 Value Destroyed (12236) 12236 Prototype IDs (29) 580 Alien Tech Used (0) 0 Bonus (3880) 3880 TOTAL SCORE: 25616 Bonus ------- High Alert Combat Kills 1023 Follower Combat Kills 777 Entered Garrisons 200 Met R17 at Cetus 500 Met R17 at Research 2000 Friendly Fire -620 Cogmind --------- Core Integrity 0/1450 Matter 11/300 Energy 100/100 System Corruption 0% Temperature Cool (6) Movement Flying (35) Location -2/Garrison Parts ------- > --- POWER (2) -------- (None) > --- PROPULSION (6) --- Cooled Nuclear Pulse Thruster Impulse Thruster Array > --- UTILITY (10) ----- Advanced Heat Sink Advanced Signal Interpreter Advanced Launcher Guidance Computer Advanced Launcher Guidance Computer Improved Core Shielding Improved Hacking Suite Experimental Hacking Suite > --- WEAPON (5) ------- (None) > --- INVENTORY (5) ---- Compact Matter Pod (0) Heavy Machine Gun Guided Micro-nuke Launcher Peak State ------------ > --- POWER ------------ Particle Reactor Light Quantum Reactor > --- PROPULSION ------- Flexi-carbon Leg Myomer Leg Myomer Leg Myomer Leg Myomer Leg Improved Thunder Leg > --- UTILITY ---------- Advanced Heat Sink Huge Storage Unit Advanced Signal Interpreter Improved Targeting Computer Advanced Targeting Computer Advanced Launcher Guidance Computer Advanced Target Analyzer Centrium Light Armor Plating > --- WEAPON ----------- Cooled Phase Gun Cooled Phase Gun Advanced KE Penetrator Helical Railgun Micro-nuke Launcher > --- INVENTORY -------- Neutrino Core Particle Reactor Flexi-carbon Leg Flexi-carbon Leg Myomer Leg Advanced Heat Sink Medium Storage Unit Matter Compressor Improved Core Shielding Improved Core Shielding Centrium Light Armor Plating Graphene Brace Cooled Phase Gun Compact Mass Driver Tactical Quantum Warhead [Rating: 147] Favorites ----------- Power Light Antimatter Reactor Engine Deuterium Engine Power Core Light Nuclear Core Reactor Light Antimatter Reactor Propulsion Myomer Leg Treads Improved Treads Leg Myomer Leg Wheel Wheel Hover Unit Antigrav System Flight Unit VTOL Module Utility Advanced Heat Sink Device Advanced Heat Sink Storage Large Storage Unit Processor Improved Targeting Computer Hackware Hacking Suite Protection Hardened Medium Armor Plating Weapon Spread Laser Energy Gun Spread Laser Energy Cannon Cooled Particle Cannon Ballistic Gun Enhanced Autogun Ballistic Cannon Compact Mass Driver Launcher Micro-nuke Launcher Slashing Weapon Ripper Special Melee Weapon Advanced Datajack Build | -11 -10 -10 -9 -8 -8 -8 -6 -6 -6 -5 -4 -4 -4 -3 -2 -2 ------- Run | Yrd Mat Min Mat Mat Sto Rec Fac Was Fac Fac Fac Ext Cet Res Res Gar Slots Evolved 16 | . . . 2 2 . . 4 . . 2 2 . . 2 2 . Power 1 | . . . . . . . 1 . . . . . . . . . Propulsion 4 | . . . 1 1 . . 1 . . 1 . . . . . . Utility 8 | . . . . 1 . . 1 . . 1 2 . . 1 2 . Weapon 3 | . . . 1 . . . 1 . . . . . . 1 . . Parts Attached 359 | 7 21 5 17 23 22 4 23 7 59 3 16 50 13 69 20 . Power 42 | 1 2 . 3 3 2 . 4 . 10 . . 4 1 10 2 . Engine 16 | 1 1 . 3 . 2 . 2 . 6 . . 1 . . . . Core 9 | . 1 . . 3 . . 2 . 2 . . . . 1 . . Reactor 17 | . . . . . . . . . 2 . . 3 1 9 2 . Propulsion 120 | 2 7 2 5 8 6 . 9 4 20 1 6 22 4 18 6 . Treads 9 | . . . . . . . . 3 1 . . 4 1 . . . Leg 68 | . 7 2 2 7 5 . 5 . 10 1 . 10 1 18 . . Wheel 24 | 2 . . 1 1 . . 4 1 9 . 2 4 . . . . Hover 5 | . . . . . . . . . . . 3 . 2 . . . Flight 14 | . . . 2 . 1 . . . . . 1 4 . . 6 . Utility 99 | 2 3 2 3 5 7 4 3 3 14 1 7 12 5 19 9 . Device 42 | 1 2 1 2 3 3 . 1 2 5 . 1 7 4 7 3 . Storage 9 | 1 1 1 1 . . . . . 3 . . 1 . 1 . . Processor 21 | . . . . . 1 . . . 3 1 5 2 . 9 . . Hackware 10 | . . . . 1 2 2 . . 1 . . 2 . . 2 . Protection 17 | . . . . 1 1 2 2 1 2 . 1 . 1 2 4 . Artifact . | . . . . . . . . . . . . . . . . . Weapon 98 | 2 9 1 6 7 7 . 7 . 15 1 3 12 3 22 3 . Energy Gun 37 | 1 3 . 5 3 1 . 1 . 7 . 2 4 3 6 1 . Energy Cannon 9 | . 5 . 1 1 2 . . . . . . . . . . . Ballistic Gun 32 | 1 . 1 . 2 3 . 3 . 6 . . 6 . 9 1 . Ballistic Cannon 6 | . . . . . . . 1 . 1 . . 1 . 3 . . Launcher 9 | . 1 . . 1 1 . 1 . . . . . . 4 1 . Special Weapon . | . . . . . . . . . . . . . . . . . Impact Weapon . | . . . . . . . . . . . . . . . . . Slashing Weapon 2 | . . . . . . . . . . 1 . 1 . . . . Piercing Weapon . | . . . . . . . . . . . . . . . . . Special Melee Weapon 3 | . . . . . . . 1 . 1 . 1 . . . . . Unidentified Prototypes 29 | . . . 1 2 5 . 2 . 2 . 1 . 3 8 5 . Corrupted Parts 2 | . . . . . . 2 . . . . . . . . . . System Corruption 5 | . . . . . . 5 . . . . . . . . . . Parts Lost 137 | . 4 . 4 3 6 . 15 5 28 6 1 12 11 15 25 2 Power 15 | . 1 . 2 1 1 . 2 . 4 1 . . . 2 1 . Propulsion 55 | . . . 1 . 1 . 6 2 13 1 . 8 5 7 9 2 Utility 25 | . 1 . . 1 1 . 2 2 2 3 1 2 4 . 6 . Weapon 42 | . 2 . 1 1 3 . 5 1 9 1 . 2 2 6 9 . Highest Loss Streak 20 | . 2 . 2 3 4 . 8 4 5 4 1 3 9 6 20 3 To Critical Strikes 3 | . . . . . . . . . . . . 1 1 1 . . Average Backups 11 | 3 8 10 14 14 14 14 14 11 7 3 3 4 6 11 8 3 Power 1 | . . 1 . 1 1 1 . . . . . . 2 2 2 . Propulsion 2 | 2 3 3 6 3 2 1 . 1 1 . 1 1 . 1 . . Utility 4 | . 3 4 4 5 5 5 6 5 5 2 2 2 2 5 3 1 Weapon 2 | . . 2 2 4 4 6 4 3 . . . . . 2 1 2 Tool/Special . | . . . . . . . . . . . . . . . . . Unused Backups 55 | . 5 . 6 7 6 1 4 4 5 . 1 1 . 9 4 2 Power 6 | . 1 . 1 . 1 . . 1 . . . 1 . 1 . . Propulsion 14 | . 3 . 2 3 3 1 . . 1 . . . . . 1 . Utility 28 | . 1 . 3 4 1 . 2 2 4 . 1 . . 6 3 1 Weapon 7 | . . . . . 1 . 2 1 . . . . . 2 . 1 Tool/Special . | . . . . . . . . . . . . . . . . . Average Slot Usage (%) 89 | . 98 100 94 99 98 100 92 61 87 6 33 82 87 95 45 44 Engine 4 | . 9 14 10 . 7 9 6 7 7 . . 1 . . . . Core 1 | . 4 . . 8 1 . 5 . 1 . . . . . . . Reactor 2 | . . . . . . . . . 1 . . 5 10 7 2 . Treads 1 | . . . . . . . . 8 2 . . 6 1 . . . Leg 24 | . 27 28 27 35 34 36 25 1 19 1 . 12 21 24 5 . Wheel 1 | . 1 . 5 . . . 3 12 5 . 4 2 . . . . Device 9 | . 13 14 11 12 10 . 6 5 7 1 5 13 15 10 5 4 Storage 6 | . 14 14 11 9 9 9 6 3 5 . . . 5 4 1 . Processor 6 | . . . . . 1 . . . 4 . 9 12 10 19 15 13 Hackware 1 | . . . . . 1 9 9 . . . . 3 . . . 8 Protection 3 | . . . . 4 4 7 2 8 4 . 1 1 1 1 2 4 Energy Gun 9 | . 18 . 22 23 9 . . 1 8 . 2 4 8 5 1 . Energy Cannon 1 | . 8 14 3 . 6 . . 2 3 . . . . . . . Ballistic Gun 9 | . . 7 2 2 11 27 20 3 9 . . 6 5 12 1 . Peak Build Rating 147 | 7 10 8 18 35 39 37 53 59 67 19 82 102 122 147 129 101 Average Rating 57 | 5 7 8 13 27 32 35 45 47 52 6 42 69 104 132 71 78 On Entrance 43 | . 7 8 8 17 30 35 37 49 37 2 1 74 102 122 129 83 Avg Prop Armor Cover (%) 14 | . . . 15 14 . . 5 35 6 28 20 11 6 12 20 21 Naked Turns 131 | . . . . . . . . . 65 60 6 . . . . . Heaviest Build 152 | 14 22 29 33 48 50 46 70 74 57 3 14 64 76 152 127 3 Greatest Support 165 | 32 32 20 30 64 64 60 78 30 165 3 16 135 135 148 130 6 Greatest Overweight (x) 6 | . 1 1 2 4 1 . 6 4 4 . 1 1 1 2 1 . Average Overweight (x) . | . . . 1 . . . . . . . . . . . . . Largest Inventory Capacity 25 | 8 10 15 15 15 15 15 15 15 10 5 5 10 10 25 25 5 Average Capacity 12 | 7 8 10 15 15 15 15 15 11 8 5 5 5 10 15 10 5 Most Carried 24 | 7 10 15 15 15 15 15 15 15 10 5 5 7 8 24 24 4 Average Carried 11 | 3 8 10 14 14 14 14 14 10 7 3 3 4 6 12 8 3 Final Capacity 25 | 8 10 15 15 15 15 15 15 5 5 5 5 10 10 25 5 5 Final Carried 24 | 7 10 15 15 15 15 15 15 5 5 2 4 7 8 24 4 4 Class Distribution -------------------- 25% | Scavenger-Gunner 11% | Mutant 10% | Scavenger-Tank 10% | Scavenger-Mutant 8% | Tank 8% | Commander-Tank 7% | Scavenger-Skirmisher 6% | Gunner 3% | Commander-Gunner 3% | Skirmisher Dominant Class ---------------- Mutant | -10/Materials Scavenger-Mutant | -10/Mines Gunner | -9/Materials Tank | -8/Materials Tank | -8/Storage Commander-Tank | -8/Recycling Commander-Gunner | -6/Factory Scavenger-Tank | -6/Waste Scavenger-Tank | -6/Factory Mutant | -5/Factory Mutant | -4/Factory Scavenger-Skirmisher | -4/Extension Scavenger-Gunner | -4/Cetus Scavenger-Gunner | -3/Research Scavenger-Sprinter | -2/Research Scavenger-Sprinter | -2/Garrison Resources | -11 -10 -10 -9 -8 -8 -8 -6 -6 -6 -5 -4 -4 -4 -3 -2 -2 ----------- Run | Yrd Mat Min Mat Mat Sto Rec Fac Was Fac Fac Fac Ext Cet Res Res Gar Matter Collected 10206 | 110 494 174 330 809 605 318 825 514 1628 . 154 716 396 2670 463 . Remotely 81 | . . . . . . . . . . . . . . . 81 . Salvage Created 14148 | 105 730 255 985 1268 1801 880 1939 485 2158 . . 737 445 2051 309 . Parts 672 | 9 48 10 44 86 110 31 89 2 96 . . 36 16 88 7 . Haulers Intercepted 13 | . 2 . 1 5 2 . 1 . . . . 1 . 1 . . Recyclers Shooed 26 | . . . 2 1 2 1 12 . 7 . . 1 . . . . Parts Field Recycled . | . . . . . . . . . . . . . . . . . Retrieved Matter . | . . . . . . . . . . . . . . . . . Parts Self-Destructed . | . . . . . . . . . . . . . . . . . Prevented . | . . . . . . . . . . . . . . . . . Parts Restored . | . . . . . . . . . . . . . . . . . Kills | -11 -10 -10 -9 -8 -8 -8 -6 -6 -6 -5 -4 -4 -4 -3 -2 -2 ------- Run | Yrd Mat Min Mat Mat Sto Rec Fac Was Fac Fac Fac Ext Cet Res Res Gar Combat Hostiles Destroyed 217 | . 12 6 12 31 34 8 18 2 34 . . 6 8 37 9 . Melee 5 | . . . . . . . . . . . . 5 . . . . Guns 126 | . 9 1 7 24 18 8 6 . 27 . . 1 5 20 . . Cannons 38 | . 3 3 5 . 10 . 2 2 6 . . . 3 4 . . AOE 42 | . . 2 . 7 5 . 8 . . . . . . 11 9 . Classes Destroyed 22 | 2 7 . 1 3 2 . 2 1 . . . . . 4 . . Worker 34 | . 1 . 5 3 3 . 11 . 8 . . 1 . 1 1 . Builder 18 | . 3 . . 3 3 . 6 . 1 . . 1 . 1 . . Tunneler 4 | 2 . . . 1 . . . . 1 . . . . . . . Hauler 13 | . 2 . 1 5 2 . 1 . . . . 1 . 1 . . Recycler 33 | 1 1 1 7 2 5 6 4 . 2 . . 3 . . 1 . Mechanic 2 | . . . . . 2 . . . . . . . . . . . Operator 7 | . 1 . 1 . 3 . . . 1 . . 1 . . . . Watcher 14 | . 2 . 4 3 1 . 1 . 1 . . . 2 . . . Swarmer 52 | . 3 3 7 8 3 1 . . 11 . . 4 . 8 4 . Grunt 100 | . 9 3 3 14 19 2 11 . 16 . . 2 . 16 5 . Brawler 4 | . . . . 1 . 1 1 . . . . . . 1 . . Duelist 1 | . . . . 1 . . . . . . . . . . . . Protector 3 | . . . . . 2 1 . . . . . . . . . . Sentry 24 | . . . 2 5 10 4 . . 2 . . . . 1 . . Demolisher 1 | . . . . . . . . . . . . . . 1 . . Hunter 8 | . . . . 2 . . 4 . 1 . . . . 1 . . Programmer 7 | . . . . . . . 1 . 4 . . . . 2 . . Heavy 1 | . . . . . . . 1 . . . . . . . . . Compactor 2 | . . . . . . . . 2 . . . . . . . . Cetus Guard 8 | . . . . . . . . . . . . . 8 . . . Striker 6 | . . . . . . . . . . . . . . 6 . . Executioner 1 | . . . . . . . . . . . . . . 1 . . Revision 1 | . . . . . . . . . . . . . . 1 . . Best Kill Streak 16 | 3 5 3 7 12 16 4 15 2 10 . . 4 4 6 7 . Combat Bots Only 11 | . 3 3 3 11 8 4 9 2 9 . . 3 4 6 5 . Max Kills in Single Turn 5 | 1 2 2 3 4 4 2 5 1 2 . . 2 2 5 3 . Gunslinging 1 | . . . . 1 1 . . . . . . . . 1 . . Exploded 5 | . . 2 . 2 2 . 3 . . . . . . 5 3 . Melee 1 | . . . . . . . . . . . . 1 . . . . Uniques/NPCs Destroyed . | . . . . . . . . . . . . . . . . . Combat | -11 -10 -10 -9 -8 -8 -8 -6 -6 -6 -5 -4 -4 -4 -3 -2 -2 -------- Run | Yrd Mat Min Mat Mat Sto Rec Fac Was Fac Fac Fac Ext Cet Res Res Gar Hostile Shots Fired 2018 | . 91 25 82 90 126 14 152 10 493 108 37 162 112 258 243 15 Missed 634 | . 21 11 10 31 31 7 38 1 171 43 18 67 46 59 73 7 Hits 1384 | . 70 14 72 59 95 7 114 9 322 65 19 95 66 199 170 8 Melee 30 | . . . . 1 . . . 9 1 . . . . 19 . . Projectile 1354 | . 70 14 72 58 95 7 114 . 321 65 19 95 66 180 170 8 AOE 5 | . . . . . . . . . 2 1 . 1 . 1 . . Critical Strikes 74 | . . . . 5 4 2 3 3 15 5 1 4 10 10 11 1 Actively Blocked 13 | . . . . . . . . 2 . . 1 . . 1 9 . Part Disruptions 2 | . . . . . . . 1 . 1 . . . . . . . Damage Taken 27587 | . 768 207 948 959 1555 107 2191 391 4914 1331 299 1913 1777 5410 4658 159 Core 5532 | . 156 56 239 146 154 . 227 65 526 969 44 694 134 665 1410 47 Absorbed by Shields 107 | . . . . . . 11 42 . 16 . . . . . . 38 Reduced by Siege Mode 97 | . . . . . . . . . . . . . . 97 . . Redirected to Shielding 482 | . . . . . . . 92 117 . . 16 33 . 42 164 18 Regen/Repaired (Parts) 605 | . . . 83 149 312 . . . . . . . . 61 . . Core Remaining (%) 34 | 100 . 15 40 . . 45 . . 3 3 . . 24 48 . . Volleys Fired 662 | 6 67 16 53 64 81 22 57 17 126 . 3 12 35 88 15 . Largest 5 | 2 2 2 3 3 3 3 4 3 4 . 2 4 4 5 4 . Hottest 849 | 60 120 80 195 195 195 73 142 163 260 . 130 216 455 849 167 . Shots Fired 1970 | 12 126 30 141 188 233 66 196 49 405 . 5 40 114 338 27 . Gun 1598 | 12 108 14 101 175 163 66 166 17 348 . 5 40 79 296 8 . Cannon 319 | . 18 15 40 3 66 . 18 32 57 . . . 35 30 5 . Launcher 53 | . . 1 . 10 4 . 12 . . . . . . 12 14 . Special . | . . . . . . . . . . . . . . . . . Kinetic 934 | 6 . 14 16 21 80 66 166 33 226 . . 17 79 199 11 . Thermal 951 | . 100 15 125 157 149 . 18 16 179 . 5 23 35 127 2 . Explosive 41 | . . 1 . 10 4 . . . . . . . . 12 14 . Electromagnetic 44 | 6 26 . . . . . 12 . . . . . . . . . Robot Hit Streak 18 | 6 12 8 13 15 17 12 16 8 8 . 5 7 11 18 6 . Robot Miss Streak 14 | . 6 1 8 14 10 3 8 2 7 . 2 5 2 8 3 . Penetration Max 2 | . . . . 1 . . 1 . 1 . . 1 1 2 . . Secondary Targets 20 | . 2 . . 6 3 1 . . 5 . . . . 3 . . Max Gunslinging Chain 2 | . 1 . . 2 1 1 . . 1 . . . . 1 . . Shots Hit Robots 1248 | 6 79 22 87 136 146 36 134 37 206 8 5 65 77 193 11 . Core Hits 882 | 5 33 9 71 191 179 19 92 6 100 1 5 19 30 87 35 . Critical Kills 12 | . 1 . . . 1 . . . 1 . . . 1 8 . . Critical Parts Destroyed 10 | . . 1 . 1 . . . . . . . . . 8 . . Critical Strikes 56 | . 2 1 . 1 1 . 3 2 6 1 . 7 5 26 1 . Burn 19 | . 1 . . . . . . . 5 . . 4 4 5 . . Meltdown 2 | . 1 . . . 1 . . . . . . . . . . . Destroy 22 | . . 1 . 1 . . . . 1 . . . 1 18 . . Blast 9 | . . . . . . . 3 2 . . . . . 3 1 . Sever 4 | . . . . . . . . . . 1 . 3 . . . . Melee Attacks 51 | . . . . . . . 1 . 1 13 . 36 . . . . Impact . | . . . . . . . . . . . . . . . . . Slashing 33 | . . . . . . . . . . 13 . 20 . . . . Piercing . | . . . . . . . . . . . . . . . . . Sneak Attacks 22 | . . . . . . . . . 1 . . 21 . . . . Combat Hostiles . | . . . . . . . . . . . . . . . . . Follow-up Attacks . | . . . . . . . . . . . . . . . . . Damage Inflicted 36549 | 69 1231 477 1481 3139 4014 749 4129 1554 4706 267 91 1899 2581 7354 2808 . Guns 20304 | 69 968 121 858 1980 1754 749 1842 241 3783 . 91 834 1711 5222 81 . Cannons 6303 | . 137 228 367 28 1002 . 670 1313 897 . . . 870 654 137 . Explosions 8517 | . 126 128 256 1131 1258 . 1570 . . . . . . 1478 2570 . Melee 1311 | . . . . . . . . . . 246 . 1065 . . . . Ramming 114 | . . . . . . . 47 . 26 21 . . . . 20 . Kinetic 13136 | 19 . 121 145 342 660 749 2252 1060 2344 . . 387 1661 3205 191 . Thermal 14033 | . 888 228 1336 1726 2096 . 773 494 2336 . 91 447 920 2671 27 . Explosive 6594 | . 89 128 . 1071 1258 . . . . . . . . 1478 2570 . Electromagnetic 1361 | 50 254 . . . . . 1057 . . . . . . . . . Impact . | . . . . . . . . . . . . . . . . . Slashing 1311 | . . . . . . . . . . 246 . 1065 . . . . Piercing . | . . . . . . . . . . . . . . . . . Highest Corruption 41 | . . . . . . 5 1 29 41 12 . . . 8 . . Average Corruption 17 | . . . . . . 4 1 13 31 5 . . . 7 . . Corruption Purged . | . . . . . . . . . . . . . . . . . Corruption Blocked . | . . . . . . . . . . . . . . . . . Effects 235 | . . . . . . 4 4 8 142 5 . . . 72 . . Message Errors 45 | . . . . . . 2 1 . 28 1 . . . 13 . . Matter Fused 55 | . . . . . . 1 1 5 26 2 . . . 20 . . Heat Flow Errors 26 | . . . . . . 1 1 . 12 1 . . . 11 . . Energy Discharges 17 | . . . . . . . 1 . 14 1 . . . 1 . . Parts Rejected 1 | . . . . . . . . 1 . . . . . . . . Parts Fused 2 | . . . . . . . . . . . . . . 2 . . Data Loss (minor) 16 | . . . . . . . . 1 11 . . . . 4 . . Data Loss (major) 5 | . . . . . . . . . 3 . . . . 2 . . Misfires 14 | . . . . . . . . . 7 . . . . 7 . . Alerts 6 | . . . . . . . . . 4 . . . . 2 . . Misdirections 9 | . . . . . . . . 1 8 . . . . . . . Weapon Failures 39 | . . . . . . . . . 29 . . . . 10 . . Overload Shots 55 | . . . . . 1 . 1 15 8 . . . 10 20 . . Effects 2 | . . . . . . . . . 2 . . . . . . . Heat Surge 1 | . . . . . . . . . 1 . . . . . . . Short Circuit 1 | . . . . . . . . . 1 . . . . . . . Overflow Damage 882 | . 11 48 234 25 73 . 136 . 37 21 . 120 33 46 98 . Projectiles 142 | . 11 . 22 . . . 70 . 6 . . . 33 . . . Explosions 599 | . . 48 212 25 73 . 66 . 31 . . . . 46 98 . Melee 141 | . . . . . . . . . . 21 . 120 . . . . Knockbacks 11 | . . . . . . . 4 . . . . . . 7 . . Impact . | . . . . . . . . . . . . . . . . . Kinetic 11 | . . . . . . . 4 . . . . . . 7 . . Secondary . | . . . . . . . . . . . . . . . . . Self-Inflicted Damage 1047 | . . . 111 132 71 . 354 . 163 10 . . . 197 9 . Shots 31 | . . . 1 4 3 . 17 . 2 . . . . 4 . . Rammed 11 | . . . . . . . 1 . 2 4 . . . . 4 . Targets Rammed 14 | . . . . . 1 . 3 . 2 4 . . . . 4 . Kicked 3 | . . . . . 1 . 2 . . . . . . . . . Crushed . | . . . . . . . . . . . . . . . . . Highest Temperature 883 | 40 218 24 625 328 342 127 288 198 493 102 . . 354 883 391 . Average Temperature 99 | 18 54 9 145 101 107 38 56 93 104 62 . . 130 155 164 . Received Heat Transfer 5533 | . 375 123 207 324 774 43 371 . 891 174 48 171 126 805 1054 47 Effects 37 | . . . 14 3 4 . . . 9 . . . 1 5 1 . Shutdowns 6 | . . . 4 . . . . . 2 . . . . . . . Energy Bleed 3 | . . . 1 . 1 . . . . . . . . 1 . . Interference 15 | . . . 3 3 3 . . . 5 . . . . 1 . . Matter Decay 4 | . . . 1 . . . . . . . . . 1 2 . . Short Circuit 3 | . . . 2 . . . . . 1 . . . . . . . Damage (minor) 3 | . . . 1 . . . . . 1 . . . . . 1 . Damage (core) 3 | . . . 2 . . . . . . . . . . 1 . . Siege Activations 1 | . . . . . . . . . . . . . . 1 . . Total Turns 31 | . . . . . . . . . . . . . . 31 . . Longest Duration 31 | . . . . . . . . . . . . . . 31 . . Martial Activations . | . . . . . . . . . . . . . . . . . Shielding Activations . | . . . . . . . . . . . . . . . . . Robots Disrupted . | . . . . . . . . . . . . . . . . . Combat Hostiles . | . . . . . . . . . . . . . . . . . Robots Corrupted 2 | . . . . . . . 2 . . . . . . . . . Combat Hostiles 2 | . . . . . . . 2 . . . . . . . . . Parts Fried 3 | . . . . . . . 3 . . . . . . . . . Impact Corruptions . | . . . . . . . . . . . . . . . . . Robots Melted 5 | . 1 . . . 1 . . . 1 . . . . 2 . . Combat Hostiles 4 | . . . . . 1 . . . 1 . . . . 2 . . Parts Melted 43 | . 8 1 3 2 5 . . . 13 . . 3 . 8 . . Heat Transferred 22366 | . 2449 481 2075 2087 2679 . 1031 487 4682 . 105 1183 1399 3671 37 . Parts Sabotaged 2 | . . . . . . . . . 2 . . . . . . . Parts Stolen . | . . . . . . . . . . . . . . . . . Parts Stripped . | . . . . . . . . . . . . . . . . . Power Chain Reactions 7 | . 1 . . . . . 6 . . . . . . . . . Alert | -11 -10 -10 -9 -8 -8 -8 -6 -6 -6 -5 -4 -4 -4 -3 -2 -2 ------- Run | Yrd Mat Min Mat Mat Sto Rec Fac Was Fac Fac Fac Ext Cet Res Res Gar Maximum Alert Level 3 | . . . 1 2 2 2 2 . 2 1 . . . 3 3 3 Low Security (%) 52 | 100 100 100 96 23 14 . . 100 63 37 100 100 100 55 . . Level 1 21 | . . . 3 57 18 60 40 . 13 62 . . . 14 . . Level 2 24 | . . . . 18 66 39 59 . 22 . . . . 26 59 . Level 3 1 | . . . . . . . . . . . . . . 4 40 100 Level 4 . | . . . . . . . . . . . . . . . . . Level 5 . | . . . . . . . . . . . . . . . . . High Security . | . . . . . . . . . . . . . . . . . Max Security . | . . . . . . . . . . . . . . . . . Peak Influence 976 | 15 148 140 206 542 696 488 551 178 469 288 135 196 92 796 976 732 Initial 732 | . 3 27 48 63 156 258 514 178 . 214 135 . 59 . 447 732 Average 243 | 2 60 91 101 298 438 383 417 78 174 219 63 84 39 259 672 724 Influence Increases 10198 | 15 448 178 510 1018 1342 652 1228 4 1274 234 27 775 202 1382 909 . Destroy 0b10 Robot/C 4700 | . 240 120 240 620 660 240 500 . 680 . . 320 160 740 180 . Destroy 0b10 Robot/NC 650 | 15 50 5 90 85 110 35 115 . 70 . . 40 10 15 10 . Destroy Leader 892 | . 58 30 70 136 178 . 84 . 152 . . 42 . 122 20 . Allied During Kill 459 | . . . . . 84 196 94 . . . . 85 . . . . Trap Triggered on 0b10 10 | . 10 . . . . . . . . . . . . . . . Successful Hack 193 | . 14 . 16 32 28 31 3 . . . 12 . . 27 30 . Select Force Hacks 200 | . . . . . . 150 . . . 50 . . . . . . Disable Machine 465 | . 15 . 45 60 60 . 15 . 105 . . 60 . 60 45 . Anti-Garrison Action 150 | . . . . . 150 . . . . . . . . . . . Destroy Structure 1079 | . 16 8 19 55 57 . 22 4 42 4 . 48 32 328 444 . Advance Influence 350 | . . . . . . . 350 . . . . . . . . . Partial Spotted 45 | . . . . . . . . . 15 . 15 . . . 15 . Lose Combat Pursuer 1005 | . 45 15 30 30 15 . 45 . 210 180 . 180 . 90 165 . Influence Decreases 9486 | 10 382 124 485 797 1049 924 1110 514 835 395 305 668 308 587 729 264 Entered New Map 2401 | . 2 44 77 87 215 406 228 332 . 225 143 . 48 1 349 244 Time Decay 4562 | 10 340 80 368 530 474 498 342 92 563 110 160 279 150 436 130 . Search Patrol Dispatched 100 | . . . . . . . 100 . . . . . . . . . Lost Part 1344 | . 40 . 40 30 60 . 150 50 272 60 2 110 110 150 250 20 Lost Ally 490 | . . . . . . 20 290 40 . . . 140 . . . . Purge Threat 589 | . . . . 150 300 . . . . . . 139 . . . . Squads Dispatched 54 | . 3 . 1 6 7 . 10 . 11 5 3 2 . 3 3 . Investigation 15 | . 2 . . 2 1 . . . 2 3 2 . . 2 1 . Extermination 8 | . . . . . . . 1 . 4 1 1 . . . 1 . Reinforcement 17 | . 1 . 1 1 2 . 6 . 1 1 . 2 . 1 1 . Assault 4 | . . . . . 3 . . . 1 . . . . . . . Garrison 10 | . . . . 3 1 . 3 . 3 . . . . . . . Intercept . | . . . . . . . . . . . . . . . . . Searches Triggered 1 | . . . . . . . 1 . . . . . . . . . Construction Impeded 5 | . . . . 1 1 . 2 . 1 . . . . . . . Haulers Reinforced 3 | . . . . . . . 2 . . . . . . 1 . . Active Scanning Responses . | . . . . . . . . . . . . . . . . . Cargo Convoy Interrupts 1 | . . . . . . . . . 1 . . . . . . . Stealth | -11 -10 -10 -9 -8 -8 -8 -6 -6 -6 -5 -4 -4 -4 -3 -2 -2 --------- Run | Yrd Mat Min Mat Mat Sto Rec Fac Was Fac Fac Fac Ext Cet Res Res Gar Distress Signals 24 | . 2 . 2 7 1 . 1 . 2 . . . 2 5 2 . Communications Jammed . | . . . . . . . . . . . . . . . . . Distress Signals . | . . . . . . . . . . . . . . . . . Times Spotted 447 | . 21 6 23 44 50 10 38 6 72 29 8 35 10 63 25 7 Peak Tracking Total 14 | . 5 3 5 11 10 4 8 3 11 14 7 9 5 11 10 7 Tactical Retreats 39 | . 2 1 2 2 1 . 2 . 9 5 . 4 . 6 5 . Traps | -11 -10 -10 -9 -8 -8 -8 -6 -6 -6 -5 -4 -4 -4 -3 -2 -2 ------- Run | Yrd Mat Min Mat Mat Sto Rec Fac Was Fac Fac Fac Ext Cet Res Res Gar Traps Triggered 11 | . . . . 1 . . 1 . 5 1 . 2 . . . 1 Indirectly . | . . . . . . . . . . . . . . . . . Trap Hack Attempts 23 | . . . . . . . . . 23 . . . . . . . Triggered . | . . . . . . . . . . . . . . . . . Disarmed . | . . . . . . . . . . . . . . . . . Reprogrammed 8 | . 3 . . . 1 . . . 4 . . . . . . . Reused 1 | . 1 . . . . . . . . . . . . . . . Traps Extracted 4 | . . . . . . . . . 4 . . . . . . . Installed 3 | . . . . . . . . . 3 . . . . . . . Triggered 1 | . 1 . . . . . . . . . . . . . . . Most Traps Carried 3 | . . . . . . . . . 3 . . . . . . . Machines | -11 -10 -10 -9 -8 -8 -8 -6 -6 -6 -5 -4 -4 -4 -3 -2 -2 ---------- Run | Yrd Mat Min Mat Mat Sto Rec Fac Was Fac Fac Fac Ext Cet Res Res Gar Machines Disabled 32 | . 1 . 3 4 5 . 1 . 7 . . 4 . 4 3 . Max in Single Turn 3 | . 1 . 3 3 1 . 1 . 2 . . 1 . 1 1 . Garrison Access 1 | . . . . . 1 . . . . . . . . . . . Energy Cycler 2 | . . . . . . . . . . . . 2 . . . . Machines Repaired . | . . . . . . . . . . . . . . . . . Machines Dismantled . | . . . . . . . . . . . . . . . . . Machines Sabotaged 1 | . . . . . . . . . . 1 . . . . . . Overloaded Fab Kills . | . . . . . . . . . . . . . . . . . Hacking | -11 -10 -10 -9 -8 -8 -8 -6 -6 -6 -5 -4 -4 -4 -3 -2 -2 --------- Run | Yrd Mat Min Mat Mat Sto Rec Fac Was Fac Fac Fac Ext Cet Res Res Gar Machines Accessed 66 | . 4 . 6 9 10 12 3 . 4 3 4 2 . 6 3 . Terminals 37 | . 4 . 4 7 7 6 1 . 2 1 . 2 . 2 1 . Fabricators 4 | . . . . . . . 1 . . . 1 . . 2 . . Repair Stations 6 | . . . 1 1 2 . . . 1 . 1 . . . . . Recycling Units 11 | . . . . . . 6 . . 1 2 2 . . . . . Scanalyzers 6 | . . . 1 1 . . 1 . . . . . . 2 1 . Garrison Access 2 | . . . . . 1 . . . . . . . . . 1 . Total Hacks 193 | . 12 . 19 33 32 38 7 . 9 8 10 3 . 14 8 . Successful 93 | . 5 . 10 18 19 23 6 . . 1 2 1 . 5 3 . Failed 99 | . 7 . 9 14 13 15 1 . 9 7 8 2 . 9 5 . Catastrophic 25 | . 1 . 1 5 3 4 . . 2 3 3 1 . 2 . . Database Lockouts 1 | . . . . 1 . . . . . . . . . . . . Manual 96 | . 11 . 11 19 14 24 2 . 5 1 . 3 . 6 . . Terminals 105 | . 12 . 13 23 20 16 3 . 5 1 . 3 . 3 6 . Fabricators 12 | . . . . . . . 2 . . . 2 . . 8 . . Repair Stations 21 | . . . 3 4 10 . . . 2 . 2 . . . . . Recycling Units 37 | . . . . . . 22 . . 2 7 6 . . . . . Scanalyzers 15 | . . . 3 6 . . 2 . . . . . . 3 1 . Garrison Access 3 | . . . . . 2 . . . . . . . . . 1 . Terminal Hacks 24 | . 2 . 2 2 8 7 1 . . . . 1 . . 1 . Record 1 | . . . . . . . 1 . . . . . . . . . Part Schematic 6 | . . . . . 2 4 . . . . . . . . . . Robot Schematic 3 | . 1 . . . . 2 . . . . . . . . . . Open Door 2 | . . . . . 2 . . . . . . . . . . . Branch Access Points 2 | . . . 1 . . . . . . . . . . . 1 . Alert Level 2 | . . . 1 . . 1 . . . . . . . . . . Unreport Threat 4 | . . . . 1 2 . . . . . . 1 . . . . Reprogram Traps 2 | . 1 . . . 1 . . . . . . . . . . . Dispatch Records 1 | . . . . . 1 . . . . . . . . . . . Hauler Manifests 1 | . . . . 1 . . . . . . . . . . . . Fabricator Hacks 7 | . . . . . . . 2 . . . 2 . . 3 . . Load Schematic 3 | . . . . . . . 1 . . . 1 . . 1 . . Build 4 | . . . . . . . 1 . . . 1 . . 2 . . Repair Station Hacks 13 | . . . 2 4 7 . . . . . . . . . . . Scan Component 7 | . . . 1 2 4 . . . . . . . . . . . Repair 6 | . . . 1 2 3 . . . . . . . . . . . Recycling Unit Hacks 4 | . . . . . . 4 . . . . . . . . . . Retrieve Components 4 | . . . . . . 4 . . . . . . . . . . Scanalyzer 9 | . . . . 5 . . 2 . . . . . . 1 1 . Insert Component 2 | . . . . 2 . . . . . . . . . . . . Analyze 2 | . . . . 2 . . . . . . . . . . . . Retrieve Study 5 | . . . . 1 . . 2 . . . . . . 1 1 . Garrison Access Hacks 1 | . . . . . . . . . . . . . . . 1 . Unlock Access 1 | . . . . . . . . . . . . . . . 1 . Unauthorized Hacks 35 | . 3 . 6 7 4 12 1 . . 1 . . . 1 . . Terminals 23 | . 3 . 6 7 4 1 1 . . 1 . . . . . . Track 1 | . . . . . 1 . . . . . . . . . . . Assimilate 1 | . . . . . 1 . . . . . . . . . . . Botnet 7 | . 1 . 2 1 1 1 1 . . . . . . . . . Skim 13 | . 2 . 4 6 1 . . . . . . . . . . . Sabotage 1 | . . . . . . . . . . 1 . . . . . . Fabricators 1 | . . . . . . . . . . . . . . 1 . . Liberate 1 | . . . . . . . . . . . . . . 1 . . Repair Stations . | . . . . . . . . . . . . . . . . . Recycling Units 11 | . . . . . . 11 . . . . . . . . . . Reject 4 | . . . . . . 4 . . . . . . . . . . Mask 2 | . . . . . . 2 . . . . . . . . . . Tunnel 5 | . . . . . . 5 . . . . . . . . . . Scanalyzers . | . . . . . . . . . . . . . . . . . Garrison Access . | . . . . . . . . . . . . . . . . . Data Cores Recovered 4 | . . . . . 2 . . . 1 . . . . 1 . . Used . | . . . . . . . . . . . . . . . . . Hacking Detections 55 | . 4 . 6 8 9 8 2 . 4 2 4 1 . 4 3 . Full Trace Events 15 | . 1 . 1 1 1 2 . . 2 2 2 . . 2 1 . Feedback Events . | . . . . . . . . . . . . . . . . . Feedback Blocked . | . . . . . . . . . . . . . . . . . Robot Schematics Acquired 3 | . 1 . . . . 2 . . . . . . . . . . Robots Built 3 | . . . . . . . 2 . . . . . . 1 . . Authchips 1 | . . . . . . . 1 . . . . . . . . . Time 326 | . . . . . . . 58 . . . . . . 268 . . Total Robot Build Rating 7 | . . . . . . . 6 . . . . . . 1 . . Part Schematics Acquired 8 | . . . . 2 2 4 . . . . . . . . . . Parts Built 2 | . . . . . . . . . . . 2 . . . . . Authchips . | . . . . . . . . . . . . . . . . . Time 31 | . . . . . . . . . . . 31 . . . . . Total Part Build Rating 4 | . . . . . . . . . . . 4 . . . . . Part Studies Acquired 5 | . . . . 1 . . 2 . . . . . . 1 1 . Parts Repaired 6 | . . . 1 2 3 . . . . . . . . . . . Time 210 | . . . 26 76 108 . . . . . . . . . . . Parts Recycled . | . . . . . . . . . . . . . . . . . Recycled Matter . | . . . . . . . . . . . . . . . . . Retrieved Matter . | . . . . . . . . . . . . . . . . . Retrieved Components 17 | . . . . . . 17 . . . . . . . . . . Parts Scanalyzed 2 | . . . . 2 . . . . . . . . . . . . Part Schematics Acquired 2 | . . . . 2 . . . . . . . . . . . . Parts Damaged . | . . . . . . . . . . . . . . . . . Bothacking | -11 -10 -10 -9 -8 -8 -8 -6 -6 -6 -5 -4 -4 -4 -3 -2 -2 ------------ Run | Yrd Mat Min Mat Mat Sto Rec Fac Was Fac Fac Fac Ext Cet Res Res Gar Used RIF Installer . | . . . . . . . . . . . . . . . . . Robots Hacked 2 | . . . . . . . 1 . 1 . . . . . . . Non-combat 2 | . . . . . . . 1 . 1 . . . . . . . Combat . | . . . . . . . . . . . . . . . . . Robot Hacks Applied 2 | . . . . . . . 1 . 1 . . . . . . . no_distress 1 | . . . . . . . . . 1 . . . . . . . find_fabricator 1 | . . . . . . . 1 . . . . . . . . . Relay Couplers Released 5 | . . . . . 1 . . . 4 . . . . . . . Machine Destruction 1 | . . . . . 1 . . . . . . . . . . . Programmers 4 | . . . . . . . . . 4 . . . . . . . Fabnet Peak Effective % . | . . . . . . . . . . . . . . . . . Robots Rewired 21 | . . . . . . 12 . . . . . 9 . . . . Allies Hacked . | . . . . . . . . . . . . . . . . . Hacks Repelled 1 | . . . . . . . . . . . . 1 . . . . Allies | -11 -10 -10 -9 -8 -8 -8 -6 -6 -6 -5 -4 -4 -4 -3 -2 -2 -------- Run | Yrd Mat Min Mat Mat Sto Rec Fac Was Fac Fac Fac Ext Cet Res Res Gar Total Allies 34 | . . . . . 10 12 2 . . . . 9 . 1 . . Largest Group 20 | . . . . . 10 20 17 2 . . . 5 . 1 . . Highest-Rated Group 278 | . . . . . 173 278 230 42 . . . 227 . 14 . . Highest-Rated Ally 51 | . . . . . 29 29 29 21 . . . 51 . 14 . . Total Orders 5 | . . . . . . 2 2 . . . . . . 1 . . ROAM 2 | . . . . . . . 2 . . . . . . . . . AID 1 | . . . . . . . . . . . . . . 1 . . PICKUP 1 | . . . . . . 1 . . . . . . . . . . COLLECT 1 | . . . . . . 1 . . . . . . . . . . Ally Attacks 215 | . . . . . 15 29 101 15 . . . 55 . . . . Total Damage 3867 | . . . . . 109 244 1304 419 . . . 1791 . . . . Kills 27 | . . . . . 2 4 7 1 . . . 13 . . . . Allies Corrupted . | . . . . . . . . . . . . . . . . . Allies Melted . | . . . . . . . . . . . . . . . . . Intel | -11 -10 -10 -9 -8 -8 -8 -6 -6 -6 -5 -4 -4 -4 -3 -2 -2 ------- Run | Yrd Mat Min Mat Mat Sto Rec Fac Was Fac Fac Fac Ext Cet Res Res Gar Active Infowar (turns) 4614 | 11 348 10 192 483 536 79 111 5 928 . . 620 47 1244 . . Optics 255 | . . . . . . . . . . . . . . 255 . . Sensors 1558 | . . . . . . . . . 569 . . . . 989 . . IFF 116 | . . . . . . . 111 5 . . . . . . . . Terrain 693 | . 125 . . . . . . . . . . 521 47 . . . Structural 1325 | . . 10 . 483 417 . . . . . . 415 . . . . Seismic 785 | 11 223 . 192 . . . . . 359 . . . . . . . Machine Analysis 276 | . . . . . 197 79 . . . . . . . . . . Robot Analysis Total . | . . . . . . . . . . . . . . . . . Derelict Logs Recovered 1 | . . 1 . . . . . . . . . . . . . . Drone Launches . | . . . . . . . . . . . . . . . . . Drone Recoveries . | . . . . . . . . . . . . . . . . . Exploration | -11 -10 -10 -9 -8 -8 -8 -6 -6 -6 -5 -4 -4 -4 -3 -2 -2 ------------- Run | Yrd Mat Min Mat Mat Sto Rec Fac Was Fac Fac Fac Ext Cet Res Res Gar Turns Passed 14193 | 85 829 166 1021 1495 1215 1339 775 220 2021 223 344 913 408 2852 268 19 Spaces Moved 9469 | 51 467 81 524 920 572 876 415 203 1279 348 528 736 190 1822 424 33 Core 886 | 2 . . . . . . . 145 160 348 168 . . . 63 . Treads 303 | . . . . . . . . . 54 . . 91 85 73 . . Legs 6335 | . 453 81 236 904 572 876 350 . 730 . . 250 105 1749 29 . Wheels 999 | 49 14 . 288 16 . . 65 58 335 . 52 122 . . . . Hover 100 | . . . . . . . . . . . 100 . . . . . Flight 846 | . . . . . . . . . . . 208 273 . . 332 33 Fastest Speed 26 | 50 100 120 115 120 125 125 110 50 50 50 40 29 120 110 26 35 Average Speed 108 | 98 120 131 128 123 125 125 121 67 108 50 54 89 141 127 38 35 Slowest Speed 330 | 100 190 190 190 260 196 125 330 140 195 50 100 240 190 260 110 35 Overloaded Moves 32 | . . . . . . . . . . . . . . . 32 . Propulsion Burnouts . | . . . . . . . . . . . . . . . . . Robots Hopped 4 | . . . . . . . . . . . 1 1 . 1 1 . Potential Cave-ins 2 | . . . . . . . . . . . . . . . 2 . Cave-ins Triggered . | . . . . . . . . . . . . . . . . . Exploration Rate (%) 43 | 5 62 23 50 60 94 90 13 79 32 9 9 76 62 48 16 7 Regions Visited 16 Branch Regions 5 Pre-discovered Areas 7 | . . 1 . 1 . 5 . . . . . . . . . . Known Exits Taken 4 | . . . . . . . . . 1 . . 1 . 1 1 . Unknown Exits Taken 10 | 1 1 1 1 1 1 1 . . . 1 1 . 1 . . . Scrap Searched . | . . . . . . . . . . . . . . . . . Spaces Dug 39 | . . 8 . . . . . . 1 2 . . . 28 . . Terrain Destroyed 691 | . 16 8 21 86 67 . 19 6 44 2 . 3 25 210 184 . Melee 2 | . . . . . . . . . . 2 . . . . . . Projectile 126 | . . . . 2 19 . 5 6 15 . . 3 25 47 4 . AOE 563 | . 16 8 21 84 48 . 14 . 29 . . . . 163 180 . Terrain Rammed . | . . . . . . . . . . . . . . . . . Walls Destroyed . | . . . . . . . . . . . . . . . . . Machines Disabled . | . . . . . . . . . . . . . . . . . Actions | -11 -10 -10 -9 -8 -8 -8 -6 -6 -6 -5 -4 -4 -4 -3 -2 -2 --------- Run | Yrd Mat Min Mat Mat Sto Rec Fac Was Fac Fac Fac Ext Cet Res Res Gar Total 11965 | 71 620 110 757 1142 921 1088 563 240 1642 375 574 934 244 2141 502 41 Wait 672 | 1 26 1 122 66 186 85 25 1 59 3 18 16 . 54 9 . Move 9446 | 50 466 80 523 919 571 875 415 202 1278 347 525 733 189 1819 421 33 Hop 4 | . . . . . . . . . . . 1 1 . 1 1 . Pick Up 192 | 7 17 5 12 25 20 1 20 3 24 1 6 10 3 34 4 . Fast Attach 205 | 7 5 . 10 6 11 2 7 4 34 3 14 42 8 41 11 . Attach 112 | . 3 . 7 8 7 . 15 4 17 4 2 8 3 14 19 1 Detach 31 | . . . 2 . . . . . 7 . . 7 1 8 5 1 Swap 140 | . 13 6 10 24 17 2 9 1 25 . 1 4 2 26 . . Drop 266 | . 23 2 18 30 27 4 11 8 35 . 4 32 3 56 13 . Fire 662 | 6 67 16 53 64 81 22 57 17 126 . 3 12 35 88 15 . Melee 51 | . . . . . . . 1 . 1 13 . 36 . . . . Ram 12 | . . . . . . . 1 . 3 4 . . . . 4 . Kick 3 | . . . . . 1 . 2 . . . . . . . . . Crush . | . . . . . . . . . . . . . . . . . Escape Stasis 13 | . . . . . . . . . 7 . . . . . . 6 Rewire 130 | . . . . . . 97 . . . . . 33 . . . . Trap 26 | . . . . . . . . . 26 . . . . . . . Miscellaneous . | . . . . . . . . . . . . . . . . . Route ------- -11/Scrapyard -10/Materials (discovered 3 exits: *Mat / [*Min x2]) -10/Mines -9/Materials (discovered 2 exits: *Mat / Min) -8/Materials (discovered 4 exits: *Fac x3 / *Sto) -8/Storage (discovered 2 exits: *Fac / *Rec) -8/Recycling (discovered 2 exits: *Fac / Scr) -6/Factory -6/Waste -6/Factory (discovered 2 exits: *Fac x2) -5/Factory -4/Factory -4/Extension (discovered 3 exits: *Res x2 / *Cet) -4/Cetus (discovered 2 exits: *Res / [*Arc]) -3/Research (discovered 2 exits: *Res x2) -2/Research (discovered 3 exits: Tes x2 / Gar) -2/Garrison History --------- Turn | Location | Event 2 | -11/Scrapyard | Met Revision 17 14 | -11/Scrapyard | Discovered new exit (range 15) 86 | -11/Scrapyard | Entered Materials 183 | -10/Materials | Discovered new exit (range 14) 363 | -10/Materials | Build established: Mutant 563 | -10/Materials | Core integrity fell below 50% 772 | -10/Materials | Discovered new exit (range 16) 870 | -10/Materials | Discovered new exit (range 11) 915 | -10/Materials | Entered Mines 959 | -10/Mines | Learned location of Zion (-6) 999 | -10/Mines | Discovered new exit (range 5) 1019 | -10/Mines | Build established: Scavenger-Mutant 1037 | -10/Mines | Core integrity fell below 20% 1081 | -10/Mines | Entered Materials 1081 | -9/Materials | Evolved 2 slots: Propulsion x1, Weapon x1 1124 | -9/Materials | Repaired Aluminum Leg 1147 | -9/Materials | Identified exit to Mines 1483 | -9/Materials | Core integrity fell below 50% 1936 | -9/Materials | Discovered new exit (range 9) 2031 | -9/Materials | Build established: Gunner 2102 | -9/Materials | Entered another Materials area 2102 | -8/Materials | Evolved 2 slots: Propulsion x1, Utility x1 2168 | -8/Materials | Central database locked down 2213 | -8/Materials | Discovered new exit (range 15) 2364 | -8/Materials | Garrison activated, responded to threat 2425 | -8/Materials | Destroyed 11 combat bots 2702 | -8/Materials | Destroyed 7 combat bots 2767 | -8/Materials | Lost 3 parts (1p1u1w) 2931 | -8/Materials | Identified exit to Factory 2962 | -8/Materials | Learned location of 1 exit from Extension 3000 | -8/Materials | Learned 2 Storage zone layouts 3003 | -8/Materials | Learned 4 Recycling zone layouts 3043 | -8/Materials | Learned 8 Factory zone layouts 3060 | -8/Materials | Build established: Tank 3185 | -8/Materials | Repaired Carbon-fiber Leg 3224 | -8/Materials | Repaired Carbon-fiber Leg 3597 | -8/Materials | Entered Storage 3600 | -8/Storage | Garrison activated, responded to threat 3861 | -8/Storage | Lost 4 parts (1p1n2w) 3866 | -8/Storage | Destroyed 8 combat bots 4100 | -8/Storage | Repaired Titanium Leg 4195 | -8/Storage | Core integrity fell below 50% 4386 | -8/Storage | Discovered exit to Factory (range 15) 4506 | -8/Storage | Assisted by bots powering up and referring to "LRC-V3" 4732 | -8/Storage | Repaired Titanium Leg 4766 | -8/Storage | Repaired Imp. Aluminum Leg 4791 | -8/Storage | Used back door to open Recycling access 4791 | -8/Storage | Discovered new exit (range 4) 4797 | -8/Storage | First assault squad dispatched 4806 | -8/Storage | Build established: Commander-Skirmisher 4812 | -8/Storage | Entered Recycling 4812 | -8/Recycling | Accompanied by 8 allies 4813 | -8/Recycling | Identified exit to Scraptown 5198 | -8/Recycling | Build established: Commander-Tank 5457 | -8/Recycling | Discovered new exit (range 16) 5665 | -8/Recycling | Scanned before Scraplab entrance 6151 | -8/Recycling | Entered Factory 6151 | -6/Factory | Accompanied by 17 allies 6151 | -6/Factory | Evolved 4 slots: Power x1, Propulsion x1, Utility x1, Weapon x1 6152 | -6/Factory | Identified exit to Factory 6307 | -6/Factory | Garrison activated, responded to threat 6376 | -6/Factory | Build established: Commander-Gunner 6453 | -6/Factory | Lost 3 allies 6501 | -6/Factory | Search patrols dispatched 6580 | -6/Factory | Lost 4 allies 6692 | -6/Factory | Destroyed 9 combat bots 6695 | -6/Factory | Lost 8 parts (1p4n2u1w) 6793 | -6/Factory | Lost 6 parts (1p2n3w) 6872 | -6/Factory | Fabricated H-55 Commando? 6926 | -6/Factory | Sucked down chute 6926 | -6/Factory | Entered Waste 6936 | -6/Waste | 2 allies followed down the chute 6941 | -6/Waste | EMP discharged 6944 | -6/Waste | Spotted C-40 Crusher 6949 | -6/Waste | Spotted C-40 Crusher 6966 | -6/Waste | Allies destroyed C-40 Crusher 6978 | -6/Waste | Spotted C-40 Crusher 6994 | -6/Waste | Crushed by Compactor (1 part destroyed) 6997 | -6/Waste | Destroyed C-40 Crusher 7017 | -6/Waste | Destroyed C-40 Crusher 7031 | -6/Waste | Spotted C-40 Crusher 7036 | -6/Waste | Spotted C-40 Crusher 7041 | -6/Waste | EMP discharged 7041 | -6/Waste | System corruption reached 10% 7048 | -6/Waste | Spotted C-40 Crusher 7054 | -6/Waste | Crushed by Compactor (0 parts destroyed, 1 dropped) 7057 | -6/Waste | Crushed by Compactor (1 part destroyed, 2 dropped) 7060 | -6/Waste | Crushed by Compactor (1 part destroyed) 7063 | -6/Waste | Crushed by Compactor (0 parts destroyed, 1 dropped) 7091 | -6/Waste | Lost 4 parts (1n2u1w) 7106 | -6/Waste | Crushed by Compactor (0 parts destroyed, 1 dropped) 7140 | -6/Waste | Discovered new exit (range 12) 7141 | -6/Waste | EMP discharged 7146 | -6/Waste | Entered Factory 7481 | -6/Factory | Lost 5 parts (1p3n1w) 7773 | -6/Factory | Build established: Scavenger-Gunner 7892 | -6/Factory | System corruption reached 30% 8087 | -6/Factory | Discovered exit to Factory (range 5) 8212 | -6/Factory | Build established: Scavenger-Skirmisher 8257 | -6/Factory | Discovered exit to Factory (range 4) 8291 | -6/Factory | Core integrity fell below 50% 8679 | -6/Factory | Garrison activated, responded to threat 8775 | -6/Factory | Destroyed 9 combat bots 8781 | -6/Factory | Lost 3 parts (3w) 8896 | -6/Factory | First assault squad dispatched 9010 | -6/Factory | Core integrity fell below 20% 9062 | -6/Factory | Lost 4 parts (2n2w) 9098 | -6/Factory | Cargo convoy interrupted 9130 | -6/Factory | Lost 3 parts (2n1u) 9167 | -6/Factory | Entered another Factory area 9167 | -5/Factory | Evolved 2 slots: Propulsion x1, Utility x1 9300 | -5/Factory | Core integrity fell below 50% 9335 | -5/Factory | Lost 4 parts (1p1n2u) 9368 | -5/Factory | Build established: Mutant 9381 | -5/Factory | Core integrity fell below 20% 9381 | -5/Factory | System corruption reached 10% 9388 | -5/Factory | Discovered new exit (range 5) 9390 | -5/Factory | Entered another Factory area 9390 | -4/Factory | Evolved 2 slots: Utility x2 9557 | -4/Factory | Discovered new exit (range 13) 9655 | -4/Factory | Fabricated Spread Laser? 9734 | -4/Factory | Entered Extension 9735 | -4/Extension | Identified exit to Cetus 9811 | -4/Extension | Lost 3 parts (1n2w) 9883 | -4/Extension | Energy Cycler disabled 9883 | -4/Extension | Rescued a captive Derelict 9884 | -4/Extension | Rescued a captive Derelict 9886 | -4/Extension | Rescued a captive Derelict 9888 | -4/Extension | Rescued a captive Derelict 10135 | -4/Extension | Lost 3 parts (3n) 10156 | -4/Extension | Spotted B-86 Titan 10158 | -4/Extension | Discovered new exit (range 15) 10159 | -4/Extension | Spotted B-86 Titan 10164 | -4/Extension | Extracted ID and sensor layout for unrecognized location from A7's data core 10166 | -4/Extension | Core integrity fell below 50% 10196 | -4/Extension | Lost 3 parts (2n1u) 10280 | -4/Extension | Lost 3 parts (2n1u) 10521 | -4/Extension | Build established: Scavenger-Skirmisher 10532 | -4/Extension | Discovered new exit (range 10) 10559 | -4/Extension | Disrupted transfer network 10600 | -4/Extension | Lost 3 allies 10640 | -4/Extension | Disrupted transfer network 10647 | -4/Extension | Entered Cetus 10662 | -4/Cetus | Spotted Cetus Guard 10662 | -4/Cetus | Spotted Cetus Guard 10664 | -4/Cetus | Spotted Cetus Guard 10669 | -4/Cetus | Spotted Cetus Guard 10679 | -4/Cetus | Destroyed Cetus Guard 10689 | -4/Cetus | Destroyed Cetus Guard 10701 | -4/Cetus | Destroyed Cetus Guard 10752 | -4/Cetus | Destroyed Cetus Guard 10817 | -4/Cetus | Discovered new exit (range 16) 10841 | -4/Cetus | Spotted Cetus Guard 10841 | -4/Cetus | Spotted Cetus Guard 10843 | -4/Cetus | Spotted Cetus Guard 10844 | -4/Cetus | Spotted Cetus Guard 10853 | -4/Cetus | Destroyed Cetus Guard 10864 | -4/Cetus | Destroyed Cetus Guard 10870 | -4/Cetus | Destroyed Cetus Guard 10880 | -4/Cetus | Destroyed Cetus Guard 10888 | -4/Cetus | Discovered new exit (range 16) 10898 | -4/Cetus | Met Revision 17 10906 | -4/Cetus | Lost 9 parts (4n3u2w) 11055 | -4/Cetus | Entered Research 11055 | -3/Research | Evolved 2 slots: Utility x1, Weapon x1 11201 | -3/Research | Build established: Scavenger-Tank 11255 | -3/Research | Revision forces began assault on 0b10 11264 | -3/Research | Met up with Revision 17++ 11268 | -3/Research | Lost 6 parts (1p3n2w) 11546 | -3/Research | Build established: Scavenger-Gunner 11733 | -3/Research | Fabricated M-13 Machinist? 11755 | -3/Research | Research terminal network offline 12365 | -3/Research | Found Prototype Launcher 12365 | -3/Research | Identified Tactical Quantum Warhead 12472 | -3/Research | Spotted Striker 12490 | -3/Research | Spotted Striker 12508 | -3/Research | Destroyed Striker 12574 | -3/Research | Discovered new exit (range 6) 12580 | -3/Research | Identified exit to Research 12651 | -3/Research | Spotted B-86 Titan 12955 | -3/Research | Spotted Striker 12956 | -3/Research | Spotted Striker 12970 | -3/Research | Destroyed Striker 12984 | -3/Research | Lost 3 allies 12986 | -3/Research | Destroyed Striker 13018 | -3/Research | Spotted Executioner 13023 | -3/Research | Spotted Striker 13030 | -3/Research | Destroyed Executioner 13049 | -3/Research | Destroyed Striker 13314 | -3/Research | Spotted Striker 13325 | -3/Research | Destroyed Striker 13400 | -3/Research | Lost 5 parts (3n2w) 13789 | -3/Research | Spotted Striker 13790 | -3/Research | Destroyed Striker 13852 | -3/Research | Discovered exit to Research (range 11) 13893 | -3/Research | Spotted Executioner 13896 | -3/Research | Spotted Striker 13900 | -3/Research | Core integrity fell below 50% 13907 | -3/Research | Entered another Research area 13907 | -2/Research | Evolved 2 slots: Utility x2 13924 | -2/Research | Identified exit to Testing 14014 | -2/Research | Lost 20 parts (8n3u9w) 14021 | -2/Research | Core integrity fell below 50% 14031 | -2/Research | Spotted B-90 Cyclops 14040 | -2/Research | Core integrity fell below 20% 14060 | -2/Research | Found Prototype Launcher 14060 | -2/Research | Identified Gui. Micro-nuke Launcher 14073 | -2/Research | Lost 3 parts (1n2u) 14108 | -2/Research | Spotted B-90 Cyclops 14163 | -2/Research | Found Prototype Hackware 14163 | -2/Research | Identified Exp. Hacking Suite 14170 | -2/Research | Identified exit to Garrison 14175 | -2/Research | Entered Garrison 14189 | -2/Garrison | Triggered checkpoint 14194 | -2/Garrison | Destroyed by G-73 Enforcer with Phase Gun Last Messages --------------- Downloading performance data... Effective improvements: +10% accuracy LOCATION=GARRISON GOAL=ESCAPE 14185_ Cld. Nuclear Pulse Thruster destroyed. 14188_ Triggered Stasis Trap. 14188_ A bubble of rippling energy engulfs the area. 14188_ Field strength at 94. 14189_ Beams of light sweep through the air. An alarm sounds. 14189_ Field strength at 88. 14189_ Critical hit (Burn: +27). 14189_ Cld. Nuclear Pulse Thruster destroyed. 14190_ Field strength at 63. 14191_ Field strength at 57. 14192_ Field strength at 39. 14193_ Field strength at 33. 14194_ Field strength at 27. Map ----- +----------------------------------------------------+ | ?????????????????????????????????????????????????? | | ?????????????????????????????????????????????????? | | ?????????????????????????????????????????????????? | | ?????????????????????????????????????????????????? | | ?????????????????????????????????????????????????? | | ?????????????????????????????????????????????????? | | ?????????????????????????????????????????????????? | | ?????????????????????????????????????????????????? | | ?????????????????????????????????????????????????? | | ?????????????????????????????????????????????????? | | ?????????????????????????????????????????????????? | | ?????????????????????????????????????????????????? | | ?????????????????????????????????????????????????? | | ?????????????????????????????????????????????????? | | ?????????????????????????????????????????????????? | | ?????????????????????????????????????????????????? | | ?????????????????????????????????????????????????? | | ?????????????###############################?????? | | ????????????? #?????? | | ????????????? #?????? | | ????????????? #?????? | | ????????????????????###### ############ #?????? | | ?????????????????????????# #??????????# #?????? | | ?????????????????????????# #??????????#####?????? | | ?????????????????######### #????????????????????? | | ???????????# @ #????????????????????? | | ???????????# #????????????????????? | | ????????????# ##### gg#####????????????????????? | | ????????????????????#g ?????????????????????????? | | ????????????????????###??????????????????????????? | | ?????????????????????????????????????????????????? | | ?????????????????????????????????????????????????? | | ?????????????????????????????????????????????????? | | ?????????????????????????????????????????????????? | | ?????????????????????????????????????????????????? | | ?????????????????????????????????????????????????? | | ?????????????????????????????????????????????????? | | ?????????????????????????????????????????????????? | | ?????????????????????????????????????????????????? | | ?????????????????????????????????????????????????? | | ?????????????????????????????????????????????????? | | ?????????????????????????????????????????????????? | | ?????????????????????????????????????????????????? | | ?????????????????????????????????????????????????? | | ?????????????????????????????????????????????????? | | ?????????????????????????????????????????????????? | | ?????????????????????????????????????????????????? | | ?????????????????????????????????????????????????? | | ?????????????????????????????????????????????????? | | ?????????????????????????????????????????????????? | +----------------------------------------------------+ Best States ------------- Heat Dissipation 160 Coolant Potential 100 Energy Generation 43 Energy Capacity 690 Matter Stores 339 Matter Capacity 500 Sight Range 20 Robot Scan Range 18 Terrain Scan Range 14 Terrain Scan Density 85 Base Temperature (-) 200 Corruption Containment 12 Armor Coverage 450 Core Shielding 30 Propulsion Shielding 66 Weapon Shielding 66 Phase Shifting 10 Evasion (%) 77 Targeting Accuracy 14 Melee Accuracy 24 Launcher Accuracy 80 Target Analysis 8 Armor Integrity Analysis 40 Recoil Reduction 5 Particle Charging 20 Offensive Hacking 28 Defensive Hacking 14 Authchip Count 2 Trap Extractor Capacity 4 Item Schematics ----------------- Imp. Flight Unit | -8/Materials | Scanalyzed Spread Laser | -8/Materials | Scanalyzed Hvy. Machine Gun | -8/Storage | Hacked Lgt. Nuclear Core | -8/Storage | Hacked Imp. Titanium Leg | -8/Recycling | Hacked Med. Treads | -8/Recycling | Hacked Hrd. Light Armor Plating | -8/Recycling | Hacked Greatsword | -8/Recycling | Hacked Robot Schematics ------------------ M-13 Machinist | -10/Materials | Hacked O-24 Administrator | -8/Recycling | Hacked H-55 Commando | -8/Recycling | Hacked Fabricated ------------ H-55 Commando | x2 | -6/Factory | Authchip Spread Laser | x2 | -4/Factory M-13 Machinist | x1 | -3/Research Repaired ---------- Aluminum Leg | 7% | -9/Materials Carbon-fiber Leg | 20% | -8/Materials Carbon-fiber Leg | 43% | -8/Materials Titanium Leg | 22% | -8/Storage Titanium Leg | 15% | -8/Storage Imp. Aluminum Leg | 23% | -8/Storage Studied --------- Spread Laser | -8/Materials | Hacked Imp. Datajack | -6/Factory | Hacked Imp. Aluminum Leg | -6/Factory | Hacked Flexi-carbon Leg | -3/Research | Hacked Hvy. Machine Gun | -2/Research | Hacked Alien Tech Used ----------------- None Achievements -------------- A Problem For Future Me Botjacking Construction Begets Destruction DIY Cooler For Emergencies Only Ghost 'Em Hackathon Hydra I Laugh At Your Crits Immobile And Lovin' It Item+ Jackpot Junior Dev Myspace Network Effect Official Business Overwhelming Physics Hates This One Trick Spot Them First Suspicious That Tickles There's More Where That Came From Thread The Needle Around The Corner Well Done You Again You May Approach The Wall Challenges ------------ None Game ------ Seed GravmagHardenedNukerbomber Manual? 0 Play Time 02:44:58 Cumulative 743.1 hours Start 2025.11.03 @ 15:26:35 End 2025.11.03 @ 18:11:54 Sessions 1 Manual Loads 0 Difficulty Rogue Special Mode None Game No. 175 Rogue 37 Adventurer 138 Explorer 0 Win Type - Total 11 Types 7/0/1/2/0/0/0/0/1/0 Lore% 78 Gallery% 76 Achievement% 47 Wizard Run 0 Options --------- Layout 2 ASCII 0 Keyboard 0 Movement Mouse Keybinds 0 Fullscreen 1 Font 24/Smallcaps Map View 50x49 Zoom Use 0% Tactical HUD 1 Map Filters NONE Filters NONE Steam 1 RUN: 28b779ed-dc9d-413e-a5e8-c03041d9ea7b